[Event "DVM U14 2021"]
[Site "Willingen"]
[Date "2022.08.13"]
[Round "1"]
[White "Fettig, Konrad"]
[Black "Liu, Leon"]
[Result "0-1"]
[ECO "B13"]
[WhiteElo "1677"]
[BlackElo "1256"]
[Annotator "NA RC COMBH"]
[PlyCount "118"]
[EventDate "2022.08.12"]
[EventType "team-tourn"]
[EventRounds "7"]
[EventCountry "GER"]
[SourceTitle "playchess.com"]
[Source "ChessBase"]
[SourceQuality "1"]
[TimeControl "40/5400+30:1800+30"]

1. e4 {[%emt 0:00:12]} c6 {[%emt 0:00:00]} 2. d4 {[%emt 0:00:03]} d5 {[%emt 0:00:00]} 3. exd5 {[%emt 0:00:07]} cxd5 {[%emt 0:00:00]} 4. c3 {[%emt 0:00:37]} Bf5 {[%emt 0:00:04]} 5. Bd3 {[%emt 0:00:43]} Bxd3 {[%emt 0:00:14]} 6. Qxd3 {[%emt 0:00:06]} Nc6 {[%emt 0:00:38]} 7. Nf3 {[%emt 0:01:17]} e6 {[%emt 0:01:52]} 8. Bf4 {[%emt 0:01:09]} Nf6 {[%emt 0:01:19]} 9. Nbd2 {[%emt 0:03:24]} Be7 {[%emt 0:02:50]} 10. O-O {[%emt 0:03:27]} O-O {[%emt 0:03:28]} 11. Rfe1 {[%emt 0:06:01]} Qb6 {[%emt 0:05:43]} 12. Ne5 {[%emt 0:08:14]} Rac8 {[%emt 0:03:54]} 13. Bg5 {[%emt 0:09:37]} Nxe5 {[%emt 0:01:02]} 14. dxe5 {[%emt 0:00:17]} Ng4 {[%emt 0:02:58]} 15. Bxe7 {[%emt 0:00:04]} Qxf2+ {[%emt 0:00:08]} 16. Kh1 {[%emt 0:00:05]} Qxe1+ {[%emt 0:00:10]} 17. Rxe1 {[%emt 0:00:03]} Nf2+ {[%emt 0:00:13]} 18. Kg1 {[%emt 0:00:05]} Nxd3 {[%emt 0:04:50]} 19. Rf1 {[%emt 0:01:39]} Rfe8 {[%emt 0:00:38]} 20. Ba3 {[%emt 0:00:08]} Nxe5 {[%emt 0:07:12]} 21. Re1 {[%emt 0:00:11]} Nc4 {[%emt 0:00:19]} 22. Nxc4 {[%emt 0:00:06]} Rxc4 {[%emt 0:00:32]} 23. Kf2 {[%emt 0:00:52]} Rec8 {[%emt 0:02:38]} 24. Rd1 {[%emt 0:00:27]} Ra4 {[%emt 0:02:11]} 25. g4 {[%emt 0:00:19]} Rxa3 {[%emt 0:00:36]} 26. bxa3 {[%emt 0:00:04]} Rxc3 {[%emt 0:00:30]} 27. Rb1 {[%emt 0:00:05]} Rxa3 {[%emt 0:00:08]} 28. Rxb7 {[%emt 0:00:03]} g6 {[%emt 0:00:09]} 29. Rb2 {[%emt 0:00:05]} Kg7 {[%emt 0:00:17]} 30. Rd2 {[%emt 0:00:04]} Kf6 {[%emt 0:00:28]} 31. Kg2 {[%emt 0:00:09]} Kg5 {[%emt 0:01:38]} 32. h3 {[%emt 0:00:07]} Kh4 {[%emt 0:00:06]} 33. Rf2 {[%emt 0:02:41]} f5 {[%emt 0:00:28]} 34. gxf5 {[%emt 0:00:33]} exf5 {[%emt 0:00:23]} 35. Rd2 {[%emt 0:00:15]} Rg3+ {[%emt 0:00:12]} 36. Kf2 {[%emt 0:00:10]} Rxh3 {[%emt 0:00:07]} 37. Rxd5 {[%emt 0:00:06]} Rh2+ {[%emt 0:00:12]} 38. Kf3 {[%emt 0:00:06]} Rxa2 {[%emt 0:00:05]} 39. Rd7 {[%emt 0:00:30]} h5 {[%emt 0:00:07]} 40. Rd1 {[%emt 0:00:30]} Kg5 41. Rg1+ {[%emt 1:33:33]} Kh6 {[%emt 0:31:13]} 42. Rh1 {[%emt 0:00:00]} a5 {[%emt 0:00:08]} 43. Rb1 {[%emt 0:00:00]} a4 {[%emt 0:00:08]} 44. Rb4 {[%emt 0:00:00]} Ra1 {[%emt 0:00:06]} 45. Ke2 {[%emt 0:00:00]} a3 {[%emt 0:00:04]} 46. Kd2 {[%emt 0:00:00]} a2 {[%emt 0:00:06]} 47. Kc2 {[%emt 0:00:00]} Rc1+ {[%emt 0:00:06]} 48. Kxc1 {[%emt 0:00:00]} a1=Q+ {[%emt 0:00:04]} 49. Rb1 {[%emt 0:00:00]} Qxb1+ {[%emt 0:00:06]} 50. Kxb1 {[%emt 0:00:00]} h4 {[%emt 0:00:04]} 51. Kc1 {[%emt 0:00:00]} h3 {[%emt 0:00:04]} 52. Kd1 {[%emt 0:00:00]} h2 {[%emt 0:00:03]} 53. Ke2 {[%emt 0:00:00]} h1=Q {[%emt 0:00:06]} 54. Kf2 {[%emt 0:00:00]} Qe4 55. Kg3 {[%emt 0:00:14]} f4+ {[%emt 0:01:17]} 56. Kf2 {[%emt 0:00:00]} Qe3+ {[%emt 0:00:11]} 57. Kf1 {[%emt 0:00:00]} Qg3 {[%emt 0:00:06]} 58. Ke2 {[%emt 0:00:00]} f3+ {[%emt 0:00:21]} 59. Kf1 {[%emt 0:00:00]} Qg2+ {[%emt 0:01:58]} 0-1

[Event "DVM U14 2021"]
[Site "Willingen"]
[Date "2022.08.13"]
[Round "1"]
[White "Trenz, Finn"]
[Black "von Beckh, Frieda"]
[Result "1-0"]
[ECO "A36"]
[WhiteElo "1667"]
[BlackElo "1548"]
[Annotator "NA RC COMBH"]
[PlyCount "71"]
[EventDate "2022.08.12"]
[EventType "team-tourn"]
[EventRounds "7"]
[EventCountry "GER"]
[SourceTitle "playchess.com"]
[Source "ChessBase"]
[SourceQuality "1"]
[TimeControl "40/5400+30:1800+30"]

1. e4 {[%emt 0:00:09]} c5 {[%emt 0:00:00]} 2. c4 {[%emt 0:00:05]} Nc6 {[%emt 0:00:00]} 3. Nc3 {[%emt 0:00:20]} g6 {[%emt 0:00:00]} 4. g3 {[%emt 0:02:09]} Bg7 {[%emt 0:00:32]} 5. Bg2 {[%emt 0:04:04]} Nf6 {[%emt 0:01:20]} 6. Nge2 {[%emt 0:04:39]} O-O {[%emt 0:00:31]} 7. O-O {[%emt 0:05:01]} Ne8 {[%emt 0:06:57]} 8. d3 {[%emt 0:02:35]} Nc7 {[%emt 0:02:12]} 9. Be3 {[%emt 0:02:16]} Ne6 {[%emt 0:04:39]} 10. a3 {[%emt 0:03:43]} Ned4 {[%emt 0:01:34]} 11. Rb1 {[%emt 0:11:03]} a5 {[%emt 0:19:03]} 12. a4 {[%emt 0:05:26]} d6 {[%emt 0:04:21]} 13. Nb5 {[%emt 0:09:04]} Nxb5 {[%emt 0:00:17]} 14. axb5 {[%emt 0:05:22]} Ne5 {[%emt 0:03:04]} 15. h3 {[%emt 0:09:48]} f5 {[%emt 0:15:36]} 16. Kh2 {[%emt 0:02:50]} fxe4 {[%emt 0:02:46]} 17. Bxe4 {[%emt 0:04:46]} Qd7 {[%emt 0:06:07]} 18. Bd5+ {[%emt 0:01:35]} Kh8 {[%emt 0:01:19]} 19. Bg2 {[%emt 0:03:16]} Qf5 {[%emt 0:08:51]} 20. Nf4 {[%emt 0:03:23]} g5 {[%emt 0:03:22]} 21. Be4 {[%emt 0:01:11]} Qd7 {[%emt 0:01:44]} 22. Qh5 {[%emt 0:00:21]} h6 {[%emt 0:02:43]} 23. Ng6+ {[%emt 0:00:14]} Nxg6 {[%emt 0:01:04]} 24. Bxg6 {[%emt 0:01:00]} Rf6 {[%emt 0:01:18]} 25. Be4 {[%emt 0:00:50]} Kg8 {[%emt 0:02:29]} 26. f4 {[%emt 0:02:26]} g4 {[%emt 0:02:36]} 27. Bd2 {[%emt 0:04:24]} gxh3 {[%emt 0:01:17]} 28. Bc3 {[%emt 0:00:30]} Rf7 {[%emt 0:02:20]} 29. Bxg7 {[%emt 0:00:15]} Rxg7 {[%emt 0:00:55]} 30. Rbe1 {[%emt 0:03:01]} e6 {[%emt 0:01:01]} 31. f5 {[%emt 0:05:43]} Qf7 {[%emt 0:00:47]} 32. Qxh6 {[%emt 0:03:24]} Rh7 {[%emt 0:00:19]} 33. Qg5+ {[%emt 0:00:53]} Qg7 {[%emt 0:00:26]} 34. Qd8+ {[%emt 0:00:18]} Qf8 {[%emt 0:00:15]} 35. Qxf8+ {[%emt 0:00:04]} Kxf8 {[%emt 0:00:07]} 36. fxe6+ {[%emt 0:00:43]} 1-0

[Event "DVM U14 2021"]
[Site "Willingen"]
[Date "2022.08.13"]
[Round "1"]
[White "Vollbehr, Bjarne"]
[Black "Menne, Lukas"]
[Result "1-0"]
[ECO "E01"]
[WhiteElo "1654"]
[BlackElo "1190"]
[Annotator "NA RC COMBH"]
[PlyCount "79"]
[EventDate "2022.08.12"]
[EventType "team-tourn"]
[EventRounds "7"]
[EventCountry "GER"]
[SourceTitle "playchess.com"]
[Source "ChessBase"]
[SourceQuality "1"]
[TimeControl "40/5400+30:1800+30"]

1. d4 {[%emt 0:00:06]} d5 {[%emt 0:00:06]} 2. c4 {[%emt 0:00:08]} e6 {[%emt 0:00:09]} 3. g3 {[%emt 0:00:10]} Nf6 {[%emt 0:00:23]} 4. Bg2 {[%emt 0:00:10]} c6 {[%emt 0:00:16]} 5. Nf3 {[%emt 0:00:14]} Bd6 {[%emt 0:00:26]} 6. O-O {[%emt 0:00:33]} O-O {[%emt 0:00:33]} 7. Qc2 {[%emt 0:01:13]} Nbd7 {[%emt 0:01:38]} 8. Nbd2 {[%emt 0:02:24]} e5 {[%emt 0:02:55]} 9. cxd5 {[%emt 0:03:10]} Nxd5 {[%emt 0:01:19]} 10. Nc4 {[%emt 0:01:24]} Qe7 {[%emt 0:03:59]} 11. Nxd6 {[%emt 0:02:26]} Qxd6 {[%emt 0:00:20]} 12. dxe5 {[%emt 0:01:34]} Nxe5 {[%emt 0:00:24]} 13. Nxe5 {[%emt 0:02:00]} Qxe5 {[%emt 0:00:24]} 14. e4 {[%emt 0:03:24]} Nf6 {[%emt 0:00:49]} 15. Bd2 {[%emt 0:01:21]} Be6 {[%emt 0:03:43]} 16. Bc3 {[%emt 0:01:28]} Qc5 {[%emt 0:01:43]} 17. Qd2 {[%emt 0:08:37]} Rfd8 {[%emt 0:02:42]} 18. Qf4 {[%emt 0:01:16]} Qe7 {[%emt 0:09:53]} 19. Qg5 {[%emt 0:03:20]} h6 {[%emt 0:02:53]} 20. Qh4 {[%emt 0:10:41]} Kh7 {[%emt 0:10:21]} 21. Qf4 {[%emt 0:12:56]} Rd7 {[%emt 0:07:01]} 22. Bf3 {[%emt 0:11:08]} Rad8 {[%emt 0:04:31]} 23. Bd1 {[%emt 0:06:22]} Bh3 {[%emt 0:03:10]} 24. Re1 {[%emt 0:01:45]} Kg8 {[%emt 0:09:47]} 25. Bc2 {[%emt 0:04:39]} Qe6 {[%emt 0:06:47]} 26. f3 {[%emt 0:05:27]} b5 {[%emt 0:05:20]} 27. g4 {[%emt 0:07:20]} h5 {[%emt 0:02:58]} 28. g5 {[%emt 0:00:35]} Nh7 {[%emt 0:02:31]} 29. g6 {[%emt 0:00:20]} Qxg6+ {[%emt 0:00:57]} 30. Qg3 {[%emt 0:02:03]} Qxg3+ {[%emt 0:01:49]} 31. hxg3 {[%emt 0:00:01]} Ng5 {[%emt 0:00:57]} 32. Kf2 {[%emt 0:00:59]} Ne6 {[%emt 0:07:33]} 33. Rh1 {[%emt 0:02:41]} Bg4 {[%emt 0:01:55]} 34. Rac1 {[%emt 0:02:18]} Bxf3 {[%emt 0:02:27]} 35. Kxf3 {[%emt 0:00:34]} g6 {[%emt 0:01:08]} 36. Bf6 {[%emt 0:01:03]} Rc8 {[%emt 0:01:58]} 37. Rhd1 {[%emt 0:01:13]} Rcc7 {[%emt 0:00:43]} 38. Bb3 {[%emt 0:01:14]} a5 {[%emt 0:01:10]} 39. a4 {[%emt 0:00:27]} b4 {[%emt 0:01:28]} 40. Ke3 {[%emt 0:00:34]} 1-0

[Event "DVM U14 2021"]
[Site "Willingen"]
[Date "2022.08.13"]
[Round "1"]
[White "Martin Fernandez, Rafael"]
[Black "Le, Dinh An"]
[Result "*"]
[ECO "D77"]
[WhiteElo "1645"]
[BlackElo "1470"]
[Annotator "NA RC COMBH"]
[PlyCount "62"]
[EventDate "2022.08.12"]
[EventType "team-tourn"]
[EventRounds "7"]
[EventCountry "GER"]
[SourceTitle "playchess.com"]
[Source "ChessBase"]
[SourceQuality "1"]
[TimeControl "40/5400+30:1800+30"]

1. d4 {[%emt 0:00:21]} Nf6 {[%emt 0:00:31]} 2. Nf3 {[%emt 0:00:30]} g6 {[%emt 0:01:16]} 3. c4 {[%emt 0:00:58]} Bg7 {[%emt 0:01:24]} 4. Nc3 {[%emt 0:00:25]} d5 {[%emt 0:04:39]} 5. g3 {[%emt 0:01:58]} O-O {[%emt 0:02:01]} 6. Bg2 {[%emt 0:01:51]} Nc6 {[%emt 0:05:55]} 7. O-O {[%emt 0:01:07]} dxc4 {[%emt 0:01:51]} 8. d5 {[%emt 0:02:36]} Nb4 {[%emt 0:02:17]} 9. Ne1 {[%emt 0:04:11]} c6 {[%emt 0:04:06]} 10. e4 {[%emt 0:03:14]} cxd5 {[%emt 0:00:09]} 11. exd5 {[%emt 0:02:11]} Bf5 {[%emt 0:04:31]} 12. a3 {[%emt 0:01:10]} Nd3 {[%emt 0:00:09]} 13. Nxd3 {[%emt 0:02:22]} Bxd3 {[%emt 0:00:11]} 14. Re1 {[%emt 0:01:30]} Nd7 {[%emt 0:02:38]} 15. Ne4 {[%emt 0:04:30]} Qb6 {[%emt 0:02:57]} 16. Ra2 {[%emt 0:07:11]} Rac8 {[%emt 0:01:47]} 17. a4 {[%emt 0:01:24]} a5 {[%emt 0:02:43]} 18. Be3 {[%emt 0:05:31]} Qb3 {[%emt 0:01:07]} 19. Qxb3 {[%emt 0:00:06]} cxb3 {[%emt 0:00:36]} 20. Ra3 {[%emt 0:00:28]} Bc2 {[%emt 0:03:07]} 21. Bc1 {[%emt 0:00:59]} Ne5 {[%emt 0:03:53]} 22. Nd2 {[%emt 0:00:31]} Nd3 {[%emt 0:00:12]} 23. Rf1 {[%emt 0:00:15]} Nxc1 {[%emt 0:00:54]} 24. Rxc1 {[%emt 0:00:14]} Bxb2 {[%emt 0:00:08]} 25. Raa1 {[%emt 0:01:45]} Bxa1 {[%emt 0:00:07]} 26. Rxa1 {[%emt 0:00:11]} b2 {[%emt 0:00:07]} 27. Re1 {[%emt 0:03:32]} Rc7 {[%emt 0:00:53]} 28. Bf1 {[%emt 0:00:59]} Rfc8 {[%emt 0:01:58]} 29. Nb1 {[%emt 0:02:26]} Bxb1 {[%emt 0:00:10]} 30. Rxb1 {[%emt 0:00:03]} Rc2 {[%emt 0:00:20]} 31. Kg2 {[%emt 0:00:07]} Rd2 {[%emt 0:05:20]} *

[Event "DVM U14 2021"]
[Site "Willingen"]
[Date "2022.08.13"]
[Round "1"]
[White "Aravindan, Midhulan"]
[Black "Schwan, Aaron"]
[Result "0-1"]
[ECO "B23"]
[WhiteElo "1642"]
[BlackElo "1672"]
[Annotator "NA RC COMBH"]
[PlyCount "94"]
[EventDate "2022.08.12"]
[EventType "team-tourn"]
[EventRounds "7"]
[EventCountry "GER"]
[SourceTitle "playchess.com"]
[Source "ChessBase"]
[SourceQuality "1"]
[TimeControl "40/5400+30:1800+30"]

1. e4 {[%emt 0:00:03]} c5 {[%emt 0:00:00]} 2. Nc3 {[%emt 0:00:45]} a6 {[%emt 0:00:19]} 3. f4 {[%emt 0:00:50]} b5 {[%emt 0:01:59]} 4. d3 {[%emt 0:01:42]} e6 {[%emt 0:00:22]} 5. Nf3 {[%emt 0:01:06]} Nc6 {[%emt 0:03:14]} 6. Be2 {[%emt 0:01:18]} Be7 {[%emt 0:00:52]} 7. O-O {[%emt 0:01:10]} Bb7 {[%emt 0:08:32]} 8. f5 {[%emt 0:05:20]} exf5 {[%emt 0:04:23]} 9. Nd5 {[%emt 0:05:10]} fxe4 {[%emt 0:07:09]} 10. dxe4 {[%emt 0:02:43]} Nf6 {[%emt 0:08:57]} 11. Bf4 {[%emt 0:03:45]} Rc8 {[%emt 0:06:39]} 12. Nxf6+ {[%emt 0:01:01]} Bxf6 {[%emt 0:00:31]} 13. Bd6 {[%emt 0:03:56]} Be7 {[%emt 0:02:00]} 14. e5 {[%emt 0:01:43]} O-O {[%emt 0:04:24]} 15. Bd3 {[%emt 0:04:58]} Qb6 {[%emt 0:05:58]} 16. Kh1 {[%emt 0:04:51]} Bxd6 {[%emt 0:00:41]} 17. exd6 {[%emt 0:04:35]} h6 {[%emt 0:12:08]} 18. Ng5 {[%emt 0:03:08]} Ne5 {[%emt 0:05:43]} 19. Bh7+ {[%emt 0:01:50]} Kh8 {[%emt 0:01:08]} 20. Qh5 {[%emt 0:02:28]} Qxd6 {[%emt 0:03:49]} 21. Be4 {[%emt 0:06:44]} Bxe4 {[%emt 0:00:07]} 22. Nxe4 {[%emt 0:02:19]} Qe7 {[%emt 0:02:55]} 23. Rae1 {[%emt 0:06:43]} Rce8 {[%emt 0:02:32]} 24. h3 {[%emt 0:08:20]} f6 {[%emt 0:03:13]} 25. b3 {[%emt 0:02:53]} d5 {[%emt 0:02:30]} 26. Ng3 {[%emt 0:01:31]} Qf7 {[%emt 0:00:43]} 27. Qd1 {[%emt 0:02:16]} Nc6 {[%emt 0:02:08]} 28. Nf5 {[%emt 0:01:24]} Qd7 {[%emt 0:01:21]} 29. Qg4 {[%emt 0:00:55]} Ne5 {[%emt 0:01:14]} 30. Qh5 {[%emt 0:01:58]} Nf7 {[%emt 0:01:23]} 31. Qg4 {[%emt 0:03:28]} Ne5 {[%emt 0:00:52]} 32. Qg3 {[%emt 0:02:01]} c4 {[%emt 0:01:33]} 33. Nh4 {[%emt 0:01:14]} Kh7 {[%emt 0:01:18]} 34. Nf5 {[%emt 0:01:24]} d4 {[%emt 0:01:41]} 35. Rd1 {[%emt 0:00:39]} d3 {[%emt 0:01:08]} 36. cxd3 {[%emt 0:02:14]} Nxd3 {[%emt 0:00:51]} 37. bxc4 {[%emt 0:00:06]} bxc4 {[%emt 0:00:11]} 38. Nd6 {[%emt 0:01:15]} Re2 {[%emt 0:01:51]} 39. Rxd3 {[%emt 0:00:16]} cxd3 {[%emt 0:00:09]} 40. Qxd3+ {[%emt 0:00:46]} Kh8 {[%emt 0:00:29]} 41. Qxe2 {[%emt 0:30:03]} Qxd6 {[%emt 0:32:21]} 42. Rd1 {[%emt 0:01:16]} Qc6 {[%emt 0:00:00]} 43. Re1 {[%emt 0:00:00]} Rb8 {[%emt 0:00:00]} 44. Qe6 {[%emt 0:00:00]} Qc3 {[%emt 0:00:00]} 45. Rd1 {[%emt 0:00:00]} Qc2 {[%emt 0:00:00]} 46. Qd7 {[%emt 0:00:00]} Rb2 {[%emt 0:00:00]} 47. Qd5 {[%emt 0:00:00]} Rxa2 0-1

[Event "DVM U14 2021"]
[Site "Willingen"]
[Date "2022.08.13"]
[Round "1"]
[White "Bezsonna, Polina"]
[Black "Strauss, Florian"]
[Result "*"]
[ECO "B01"]
[WhiteElo "1631"]
[BlackElo "1527"]
[Annotator "NA RC COMBH"]
[PlyCount "39"]
[EventDate "2022.08.12"]
[EventType "team-tourn"]
[EventRounds "7"]
[EventCountry "GER"]
[SourceTitle "playchess.com"]
[Source "ChessBase"]
[SourceQuality "1"]
[TimeControl "40/5400+30:1800+30"]

1. e4 {[%emt 0:00:03]} d5 {[%emt 0:00:07]} 2. exd5 {[%emt 0:00:10]} Nf6 {[%emt 0:00:05]} 3. d4 {[%emt 0:01:22]} Nxd5 {[%emt 0:00:27]} 4. Bc4 {[%emt 0:01:02]} Nc6 {[%emt 0:01:35]} 5. Bb3 {[%emt 0:07:00]} Nf6 {[%emt 0:01:54]} 6. c3 {[%emt 0:05:52]} Bg4 {[%emt 0:01:06]} 7. Ne2 {[%emt 0:01:42]} e6 {[%emt 0:04:15]} 8. h3 {[%emt 0:00:44]} Bf5 {[%emt 0:02:25]} 9. Ng3 {[%emt 0:01:20]} Bg6 {[%emt 0:01:10]} 10. O-O {[%emt 0:00:44]} Bd6 {[%emt 0:05:13]} 11. Bg5 {[%emt 0:09:35]} h6 {[%emt 0:00:38]} 12. Bxf6 {[%emt 0:01:43]} Qxf6 {[%emt 0:01:23]} 13. Ba4 {[%emt 0:07:57]} h5 {[%emt 0:03:41]} 14. Nd2 {[%emt 0:08:55]} Qf4 {[%emt 0:02:51]} 15. Nc4 {[%emt 0:02:15]} h4 {[%emt 0:03:03]} 16. Nxd6+ {[%emt 0:01:28]} cxd6 {[%emt 0:01:22]} 17. Ne2 {[%emt 0:00:31]} Qg5 {[%emt 0:01:37]} 18. Qc1 {[%emt 0:09:24]} Qxc1 {[%emt 0:03:09]} 19. Rfxc1 {[%emt 0:01:09]} a6 {[%emt 0:03:14] 0.37} 20. Nf4 {[%emt 0:00:43]} *

[Event "DVM U14 2021"]
[Site "Willingen"]
[Date "2022.08.13"]
[Round "1"]
[White "Isbilir, Levin"]
[Black "Bade, Deniz"]
[Result "1-0"]
[ECO "B33"]
[WhiteElo "1629"]
[BlackElo "1414"]
[Annotator "NA RC COMBH"]
[PlyCount "79"]
[EventDate "2022.08.12"]
[EventType "team-tourn"]
[EventRounds "7"]
[EventCountry "GER"]
[SourceTitle "playchess.com"]
[Source "ChessBase"]
[SourceQuality "1"]
[TimeControl "40/5400+30:1800+30"]

1. e4 {[%emt 0:00:20]} c5 {[%emt 0:00:03]} 2. Nf3 {[%emt 0:00:10]} Nc6 {[%emt 0:00:06]} 3. d4 {[%emt 0:00:06]} cxd4 {[%emt 0:00:05]} 4. Nxd4 {[%emt 0:00:05]} Nf6 {[%emt 0:00:19]} 5. Nc3 {[%emt 0:00:12]} e5 {[%emt 0:00:24]} 6. Ndb5 {[%emt 0:00:06]} d6 {[%emt 0:00:39]} 7. Nd5 {[%emt 0:00:23]} Nxd5 {[%emt 0:00:32]} 8. exd5 {[%emt 0:00:04]} Nb8 {[%emt 0:01:35]} 9. c4 {[%emt 0:00:16]} Be7 {[%emt 0:03:20]} 10. Bd3 {[%emt 0:01:42]} O-O {[%emt 0:02:10]} 11. O-O {[%emt 0:03:50]} a6 {[%emt 0:01:12]} 12. Nc3 {[%emt 0:00:22]} f5 {[%emt 0:05:31]} 13. Re1 {[%emt 0:12:37]} e4 {[%emt 0:03:31]} 14. Bc2 {[%emt 0:07:36]} Qc7 {[%emt 0:19:43]} 15. f3 {[%emt 0:05:52]} exf3 {[%emt 0:01:00]} 16. Qxf3 {[%emt 0:06:39]} Bf6 {[%emt 0:10:54]} 17. Bb3 {[%emt 0:06:20]} Nd7 {[%emt 0:07:54]} 18. Be3 {[%emt 0:06:10]} Bxc3 {[%emt 0:00:47]} 19. bxc3 {[%emt 0:00:19]} Ne5 {[%emt 0:15:13]} 20. Qg3 {[%emt 0:35:23]} Nxc4 {[%emt 0:01:37]} 21. Bxc4 {[%emt 0:00:03]} Qxc4 {[%emt 0:00:26]} 22. Qxd6 {[%emt 0:02:37]} Rf6 {[%emt 0:10:02]} 23. Qc5 {[%emt 0:00:30]} Qxc5 {[%emt 0:00:12]} 24. Bxc5 {[%emt 0:01:28]} b6 {[%emt 0:02:11]} 25. Re8+ {[%emt 0:00:03]} Kf7 {[%emt 0:00:29]} 26. Rf8+ {[%emt 0:00:04]} Kg6 {[%emt 0:00:36]} 27. Rxf6+ {[%emt 0:00:06]} Kxf6 {[%emt 0:00:44]} 28. Bxb6 {[%emt 0:03:11]} Bb7 {[%emt 0:02:58]} 29. Rd1 {[%emt 0:01:41]} Ke7 {[%emt 0:00:45]} 30. c4 {[%emt 0:04:32]} a5 {[%emt 0:01:47]} 31. c5 {[%emt 0:01:41]} Ra6 {[%emt 0:03:45]} 32. Bc7 {[%emt 0:00:53]} Kd7 {[%emt 0:00:25]} 33. Be5 {[%emt 0:00:57]} Ra8 {[%emt 0:00:34]} 34. c6+ {[%emt 0:00:06]} Bxc6 {[%emt 0:00:04]} 35. dxc6+ {[%emt 0:00:03]} Kxc6 {[%emt 0:00:19]} 36. Bxg7 {[%emt 0:00:16]} Rb8 {[%emt 0:01:14]} 37. Kf2 {[%emt 0:00:13]} Rb7 {[%emt 0:00:58]} 38. Bc3 {[%emt 0:00:59]} a4 {[%emt 0:00:45]} 39. a3 {[%emt 0:00:09]} Rb3 {[%emt 0:00:09]} 40. Bb4 {[%emt 0:02:03]} 1-0

[Event "DVM U14 2021"]
[Site "Willingen"]
[Date "2022.08.13"]
[Round "1"]
[White "Mehner, Lorenz"]
[Black "Freude, Paul"]
[Result "1-0"]
[ECO "D35"]
[WhiteElo "1602"]
[BlackElo "1477"]
[Annotator "NA RC COMBH"]
[PlyCount "140"]
[EventDate "2022.08.12"]
[EventType "team-tourn"]
[EventRounds "7"]
[EventCountry "GER"]
[SourceTitle "playchess.com"]
[Source "ChessBase"]
[SourceQuality "1"]
[TimeControl "40/5400+30:1800+30"]

1. d4 {[%emt 0:00:04]} Nf6 {[%emt 0:00:20]} 2. c4 {[%emt 0:00:17]} e6 {[%emt 0:00:15]} 3. Nc3 {[%emt 0:00:21]} d5 {[%emt 0:00:19]} 4. cxd5 {[%emt 0:00:23]} exd5 {[%emt 0:00:16]} 5. Bg5 {[%emt 0:00:15]} Be7 {[%emt 0:00:08]} 6. e3 {[%emt 0:00:15]} h6 {[%emt 0:00:12]} 7. Bf4 {[%emt 0:00:44]} O-O {[%emt 0:00:08]} 8. Bd3 {[%emt 0:00:25]} Nbd7 {[%emt 0:00:36]} 9. h3 {[%emt 0:06:01]} c6 {[%emt 0:01:05]} 10. Nf3 {[%emt 0:00:43]} Re8 {[%emt 0:04:16]} 11. O-O {[%emt 0:01:51]} Bb4 {[%emt 0:03:02]} 12. a3 {[%emt 0:02:10]} Bxc3 {[%emt 0:00:38]} 13. bxc3 {[%emt 0:00:10]} Ne4 {[%emt 0:00:29]} 14. Qc2 {[%emt 0:01:30]} Ndf6 {[%emt 0:01:01]} 15. Ne5 {[%emt 0:06:34]} Qa5 {[%emt 0:02:56]} 16. c4 {[%emt 0:02:43]} Be6 {[%emt 0:04:41]} 17. cxd5 {[%emt 0:07:00]} cxd5 {[%emt 0:01:39]} 18. Rfc1 {[%emt 0:06:52]} Rac8 {[%emt 0:01:59]} 19. Qb2 {[%emt 0:01:05]} Qd2 {[%emt 0:07:40]} 20. Qxd2 {[%emt 0:10:15]} Nxd2 {[%emt 0:00:22]} 21. Rd1 {[%emt 0:00:46]} Nc4 {[%emt 0:01:33]} 22. Nxc4 {[%emt 0:05:38]} dxc4 {[%emt 0:00:20]} 23. Bc2 {[%emt 0:00:34]} Bd5 {[%emt 0:01:26]} 24. Bf5 {[%emt 0:09:02]} Rc6 {[%emt 0:04:22]} 25. f3 {[%emt 0:01:29]} g6 {[%emt 0:02:48]} 26. Bc2 {[%emt 0:02:03]} Nh5 {[%emt 0:11:09]} 27. Ba4 {[%emt 0:02:21]} Nxf4 {[%emt 0:01:27]} 28. Bxc6 {[%emt 0:01:11]} Nxh3+ {[%emt 0:00:36]} 29. gxh3 {[%emt 0:00:31]} Bxc6 {[%emt 0:00:33]} 30. Kf2 {[%emt 0:00:55]} Ba4 {[%emt 0:01:26]} 31. Re1 {[%emt 0:06:44]} c3 {[%emt 0:00:46]} 32. Rab1 {[%emt 0:02:49]} b5 {[%emt 0:02:05]} 33. Ke2 {[%emt 0:02:58]} Rc8 {[%emt 0:02:21]} 34. Rec1 {[%emt 0:02:38]} Kf8 {[%emt 0:02:04]} 35. Kd3 {[%emt 0:03:25]} c2 {[%emt 0:00:21]} 36. Rb2 {[%emt 0:01:57]} Ke7 {[%emt 0:01:23]} 37. h4 {[%emt 0:06:36]} f6 {[%emt 0:01:43]} 38. e4 {[%emt 0:04:09]} g5 {[%emt 0:01:26]} 39. hxg5 {[%emt 0:01:14]} hxg5 {[%emt 0:00:59]} 40. Ra2 {[%emt 0:03:09]} a5 {[%emt 0:01:03]} 41. Raa1 {[%emt 0:03:49]} Ke6 {[%emt 0:04:28]} 42. Rh1 {[%emt 0:05:47]} Kf7 {[%emt 0:01:04]} 43. Rh7+ {[%emt 0:03:37]} Kg6 {[%emt 0:02:18]} 44. Rah1 {[%emt 0:01:47]} g4 {[%emt 0:01:28]} 45. f4 {[%emt 0:00:56]} c1=N+ {[%emt 0:01:03]} 46. Ke3 {[%emt 0:01:07]} Rc3+ {[%emt 0:00:15]} 47. Kf2 {[%emt 0:02:18]} Rh3 {[%emt 0:00:52]} 48. R7xh3 {[%emt 0:00:15]} gxh3 {[%emt 0:00:36]} 49. Rxc1 {[%emt 0:00:13]} Bb3 {[%emt 0:02:51]} 50. Rc5 {[%emt 0:01:06]} Bc4 {[%emt 0:00:25]} 51. a4 {[%emt 0:00:36]} Bd3 {[%emt 0:00:13]} 52. e5 {[%emt 0:02:15]} fxe5 {[%emt 0:00:51]} 53. fxe5 {[%emt 0:00:24]} b4 {[%emt 0:00:18]} 54. Rc6+ {[%emt 0:00:58]} Kf5 {[%emt 0:01:17]} 55. Kg3 {[%emt 0:00:31]} b3 {[%emt 0:04:26]} 56. Rb6 {[%emt 0:01:36]} Bc4 {[%emt 0:00:54]} 57. Kxh3 {[%emt 0:07:02]} Ke4 {[%emt 0:04:33]} 58. e6 {[%emt 0:00:24]} Bxe6+ {[%emt 0:01:46]} 59. Rxe6+ {[%emt 0:00:06]} Kxd4 {[%emt 0:00:05]} 60. Rb6 {[%emt 0:00:12]} Kc3 {[%emt 0:00:09]} 61. Kg3 {[%emt 0:00:17]} b2 {[%emt 0:00:19]} 62. Kf3 {[%emt 0:00:03]} Kc2 {[%emt 0:00:04]} 63. Ke3 {[%emt 0:00:21]} b1=Q {[%emt 0:00:08]} 64. Rxb1 {[%emt 0:00:04]} Kxb1 {[%emt 0:00:07]} 65. Kd3 {[%emt 0:00:12]} Kb2 {[%emt 0:00:31]} 66. Kc4 {[%emt 0:00:14]} Kc2 {[%emt 0:00:57]} 67. Kb5 {[%emt 0:00:16]} Kc3 {[%emt 0:00:18]} 68. Kxa5 {[%emt 0:00:15]} Kd4 {[%emt 0:00:21]} 69. Kb6 {[%emt 0:00:27]} Kd5 {[%emt 0:00:09]} 70. a5 {[%emt 0:00:07]} Kd6 {[%emt 0:00:19]} 1-0